Cogmind - Beta 15 @@@ ROGUE MODE // 2025.07.09 @ 01:12:52 Player: Mogwok Wargfriend Result: Destroyed by as-34285 with Assembled Maul Performance ------------- Evolutions (0) 0 Regions Visited (2) 400 Robots Destroyed (18) 90 Value Destroyed (366) 366 Prototype IDs (0) 0 Alien Tech Used (0) 0 Bonus (-54) -54 TOTAL SCORE: 802 Bonus ------- Friendly Fire -54 Cogmind --------- Core Integrity 0/250 Matter 294/300 Energy 235/250 System Corruption 0% Temperature Cool (0) Movement Rolling (95) Ox1 Location -10/Mines Parts ------- > --- POWER (1) -------- Ion Engine > --- PROPULSION (2) --- Wheel Wheel > --- UTILITY (2) ------ Improved Heat Sink Large Storage Unit > --- WEAPON (2) ------- Beam Cannon Heavy Assault Rifle > --- INVENTORY (15) --- Light Ion Engine Medium Matter Pod (86) Hacking Suite Particle Gun Particle Gun Beam Cannon Beam Cannon Grenade Launcher Mining Laser Peak State ------------ > --- POWER ------------ Ion Engine > --- PROPULSION ------- Wheel Wheel > --- UTILITY ---------- Improved Heat Sink Large Storage Unit > --- WEAPON ----------- Beam Cannon Heavy Assault Rifle > --- INVENTORY -------- Light Ion Engine Hacking Suite Particle Gun Particle Gun Beam Cannon Beam Cannon Grenade Launcher Mining Laser [Rating: 11] Favorites ----------- Power Ion Engine Engine Ion Engine Propulsion Compact Wheel Wheel Compact Wheel Utility Light Armor Plating Device Improved Heat Sink Storage Small Storage Unit Protection Light Armor Plating Weapon Assault Rifle Energy Gun Particle Gun Energy Cannon Beam Cannon Ballistic Gun Assault Rifle Build | -11 -10 -10 ------- Run | Yrd Mat Min Slots Evolved . | . . . Power . | . . . Propulsion . | . . . Utility . | . . . Weapon . | . . . Parts Attached 21 | 7 6 8 Power 4 | 1 2 1 Engine 4 | 1 2 1 Core . | . . . Reactor . | . . . Propulsion 5 | 2 . 3 Treads . | . . . Leg . | . . . Wheel 5 | 2 . 3 Hover . | . . . Flight . | . . . Utility 6 | 2 2 2 Device 2 | 1 . 1 Storage 2 | 1 1 . Processor . | . . . Hackware . | . . . Protection 2 | . 1 1 Artifact . | . . . Weapon 6 | 2 2 2 Energy Gun 2 | . 2 . Energy Cannon 1 | . . 1 Ballistic Gun 3 | 2 . 1 Ballistic Cannon . | . . . Launcher . | . . . Special Weapon . | . . . Impact Weapon . | . . . Slashing Weapon . | . . . Piercing Weapon . | . . . Special Melee Weapon . | . . . Unidentified Prototypes . | . . . Parts Lost 9 | . . 9 Power 2 | . . 2 Propulsion 3 | . . 3 Utility 2 | . . 2 Weapon 2 | . . 2 Highest Loss Streak 9 | . . 9 To Critical Strikes . | . . . Average Backups 10 | 5 9 13 Power 1 | . 1 1 Propulsion 1 | 3 1 1 Utility 2 | . 1 3 Weapon 5 | . 4 7 Tool/Special . | . . . Unused Backups 19 | . 8 11 Power 2 | . 1 1 Propulsion 5 | . 5 . Utility 4 | . 1 3 Weapon 8 | . 1 7 Tool/Special . | . . . Average Slot Usage (%) 98 | . 99 97 Engine 13 | . 14 13 Wheel 27 | . 28 26 Device 1 | . . 3 Storage 14 | . 14 14 Protection 11 | . 12 9 Energy Gun 11 | . 12 9 Energy Cannon 1 | . . 3 Ballistic Gun 15 | . 15 14 Peak Build Rating 11 | 7 10 11 Average Rating 8 | 5 8 10 On Entrance 5 | . 7 10 Naked Turns . | . . . Heaviest Build 33 | 14 33 33 Greatest Support 32 | 32 32 32 Greatest Overweight (x) 3 | . 1 3 Average Overweight (x) . | . . 1 Largest Inventory Capacity 15 | 8 15 15 Average Capacity 11 | 7 10 15 Most Carried 15 | 8 15 15 Average Carried 10 | 5 9 13 Final Capacity 15 | 8 15 15 Final Carried 15 | 8 15 9 Class Distribution -------------------- 90% | Mutant 9% | Scavenger-Mutant Dominant Class ---------------- Mutant | -10/Materials Mutant | -10/Mines Resources | -11 -10 -10 ----------- Run | Yrd Mat Min Matter Collected 723 | 318 253 152 Remotely . | . . . Salvage Created 574 | 110 298 166 Parts 48 | 10 28 10 Haulers Intercepted . | . . . Recyclers Shooed 1 | . 1 . Parts Field Recycled . | . . . Retrieved Matter . | . . . Parts Self-Destructed . | . . . Prevented . | . . . Kills | -11 -10 -10 ------- Run | Yrd Mat Min Combat Hostiles Destroyed 15 | . 7 8 Guns 12 | . 7 5 Cannons 3 | . . 3 Classes Destroyed 9 | 2 5 2 Worker 1 | . 1 . Tunneler 3 | 2 1 . Recycler 1 | 1 . . Operator 1 | . 1 . Watcher 2 | . 2 . Swarmer 3 | . 3 . Grunt 4 | . 4 . Sentry 2 | . . 2 Assembled 5 | . . 5 Best Kill Streak 5 | 2 2 5 Combat Bots Only 5 | . 2 5 Max Kills in Single Turn 1 | 1 1 1 Gunslinging . | . . . Exploded . | . . . Melee . | . . . Uniques/NPCs Destroyed 1 | . . 1 YI-UF0 (-10/Mines) Combat | -11 -10 -10 -------- Run | Yrd Mat Min Hostile Shots Fired 79 | . 33 46 Missed 26 | . 10 16 Hits 53 | . 23 30 Melee 1 | . . 1 Projectile 52 | . 23 29 AOE 21 | . . 21 Critical Strikes 1 | . 1 . Damage Taken 1180 | . 257 923 Core 251 | . 63 188 Absorbed by Shields . | . . . Regen/Repaired (Parts) 59 | . 59 . Core Remaining (%) 100 | 100 . . Volleys Fired 84 | 12 49 23 Largest 2 | 2 2 2 Hottest 88 | 40 85 88 Shots Fired 158 | 24 94 40 Gun 147 | 24 94 29 Cannon 11 | . . 11 Launcher . | . . . Special . | . . . Kinetic 101 | 24 55 22 Thermal 57 | . 39 18 Explosive . | . . . Electromagnetic . | . . . Robot Hit Streak 16 | 7 8 16 Robot Miss Streak 7 | 1 7 3 Penetration Max . | . . . Secondary Targets 1 | . 1 . Max Gunslinging Chain 1 | . 1 . Shots Hit Robots 92 | 15 52 25 Core Hits 36 | 5 18 13 Critical Kills 1 | . . 1 Critical Parts Destroyed 1 | . . 1 Critical Strikes 3 | . 1 2 Burn 1 | . 1 . Destroy 2 | . . 2 Melee Attacks . | . . . Impact . | . . . Slashing . | . . . Piercing . | . . . Sneak Attacks . | . . . Combat Hostiles . | . . . Follow-up Attacks . | . . . Damage Inflicted 1210 | 140 628 442 Guns 1080 | 140 628 312 Cannons 86 | . . 86 Explosions 44 | . . 44 Melee . | . . . Ramming . | . . . Kinetic 726 | 140 346 240 Thermal 484 | . 282 202 Explosive . | . . . Electromagnetic . | . . . Impact . | . . . Slashing . | . . . Piercing . | . . . Highest Corruption . | . . . Average Corruption . | . . . Corruption Purged . | . . . Corruption Blocked . | . . . Overload Shots . | . . . Overflow Damage 4 | . . 4 Projectiles . | . . . Explosions 4 | . . 4 Melee . | . . . Knockbacks . | . . . Impact . | . . . Kinetic . | . . . Secondary . | . . . Self-Inflicted Damage . | . . . Shots . | . . . Rammed . | . . . Targets Rammed . | . . . Kicked . | . . . Crushed . | . . . Highest Temperature 167 | . 167 150 Average Temperature 54 | . 55 51 Received Heat Transfer 271 | . 144 127 Siege Activations . | . . . Martial Activations . | . . . Shielding Activations . | . . . Robots Disrupted . | . . . Combat Hostiles . | . . . Robots Corrupted . | . . . Combat Hostiles . | . . . Parts Fried . | . . . Impact Corruptions . | . . . Robots Melted . | . . . Combat Hostiles . | . . . Parts Melted . | . . . Heat Transferred 1160 | . 740 420 Parts Sabotaged . | . . . Parts Stolen . | . . . Parts Stripped . | . . . Power Chain Reactions . | . . . Alert | -11 -10 -10 ------- Run | Yrd Mat Min Maximum Alert Level . | . . . Low Security (%) 100 | 100 100 100 Level 1 . | . . . Level 2 . | . . . Level 3 . | . . . Level 4 . | . . . Level 5 . | . . . High Security . | . . . Max Security . | . . . Peak Influence 76 | 5 76 40 Initial . | . . . Average 17 | . 26 3 Influence Increases 313 | 15 234 64 Destroy 0b10 Robot/C 180 | . 140 40 Destroy 0b10 Robot/NC 40 | 15 25 . Destroy Leader 34 | . 34 . Successful Hack 19 | . 19 . Disable Machine 30 | . 15 15 Destroy Structure 10 | . 1 9 Influence Decreases 289 | 15 234 40 Time Decay 289 | 15 234 40 Squads Dispatched 1 | . 1 . Investigation . | . . . Extermination . | . . . Reinforcement 1 | . 1 . Assault . | . . . Garrison . | . . . Intercept . | . . . Searches Triggered . | . . . Construction Impeded . | . . . Haulers Reinforced . | . . . Active Scanning Responses . | . . . Cargo Convoy Interrupts . | . . . Stealth | -11 -10 -10 --------- Run | Yrd Mat Min Distress Signals 2 | . 2 . Communications Jammed . | . . . Distress Signals . | . . . Times Spotted 37 | . 17 20 Peak Tracking Total 16 | . 3 16 Tactical Retreats 3 | . . 3 Traps | -11 -10 -10 ------- Run | Yrd Mat Min Traps Triggered . | . . . Indirectly . | . . . Trap Hack Attempts . | . . . Triggered . | . . . Disarmed . | . . . Reprogrammed . | . . . Reused . | . . . Traps Extracted . | . . . Installed . | . . . Triggered . | . . . Machines | -11 -10 -10 ---------- Run | Yrd Mat Min Machines Disabled 2 | . 1 1 Max in Single Turn 1 | . 1 1 Machines Repaired . | . . . Machines Dismantled . | . . . Machines Sabotaged . | . . . Overloaded Fab Kills . | . . . Hacking | -11 -10 -10 --------- Run | Yrd Mat Min Machines Accessed 2 | . 2 . Terminals 1 | . 1 . Fabricators . | . . . Repair Stations 1 | . 1 . Recycling Units . | . . . Scanalyzers . | . . . Garrison Access . | . . . Total Hacks 8 | . 8 . Successful 5 | . 5 . Failed 3 | . 3 . Catastrophic . | . . . Database Lockouts . | . . . Manual 2 | . 2 . Terminals 2 | . 2 . Fabricators . | . . . Repair Stations 6 | . 6 . Recycling Units . | . . . Scanalyzers . | . . . Garrison Access . | . . . Terminal Hacks . | . . . Fabricator Hacks . | . . . Repair Station Hacks 4 | . 4 . Scan Component 2 | . 2 . Repair 2 | . 2 . Recycling Unit Hacks . | . . . Scanalyzer . | . . . Garrison Access Hacks . | . . . Unauthorized Hacks 1 | . 1 . Terminals 1 | . 1 . Operators 1 | . 1 . Fabricators . | . . . Repair Stations . | . . . Recycling Units . | . . . Scanalyzers . | . . . Garrison Access . | . . . Data Cores Recovered . | . . . Used . | . . . Hacking Detections 2 | . 2 . Full Trace Events . | . . . Feedback Events . | . . . Feedback Blocked . | . . . Robot Schematics Acquired . | . . . Robots Built . | . . . Authchips . | . . . Time . | . . . Total Robot Build Rating . | . . . Part Schematics Acquired . | . . . Parts Built . | . . . Authchips . | . . . Time . | . . . Total Part Build Rating . | . . . Parts Repaired 2 | . 2 . Time 52 | . 52 . Parts Recycled . | . . . Recycled Matter . | . . . Retrieved Matter . | . . . Retrieved Components . | . . . Parts Scanalyzed . | . . . Part Schematics Acquired . | . . . Parts Damaged . | . . . Bothacking | -11 -10 -10 ------------ Run | Yrd Mat Min Used RIF Installer . | . . . Robots Hacked . | . . . Non-combat . | . . . Combat . | . . . Robot Hacks Applied . | . . . Relay Couplers Released . | . . . Fabnet Peak Effective % . | . . . Robots Rewired . | . . . Allies Hacked . | . . . Hacks Repelled . | . . . Allies | -11 -10 -10 -------- Run | Yrd Mat Min Total Allies . | . . . Largest Group . | . . . Highest-Rated Group . | . . . Highest-Rated Ally . | . . . Total Orders . | . . . Ally Attacks . | . . . Total Damage . | . . . Kills . | . . . Allies Corrupted . | . . . Allies Melted . | . . . Intel | -11 -10 -10 ------- Run | Yrd Mat Min Active Infowar (turns) 95 | 57 38 . Seismic 95 | 57 38 . Robot Analysis Total . | . . . Derelict Logs Recovered . | . . . Drone Launches . | . . . Drone Recoveries . | . . . Exploration | -11 -10 -10 ------------- Run | Yrd Mat Min Turns Passed 1307 | 114 803 390 Spaces Moved 872 | 67 520 285 Core 9 | 9 . . Treads . | . . . Legs . | . . . Wheels 863 | 58 520 285 Hover . | . . . Flight . | . . . Fastest Speed 50 | 50 100 95 Average Speed 106 | 93 105 110 Slowest Speed 125 | 100 115 125 Overloaded Moves . | . . . Propulsion Burnouts . | . . . Robots Hopped . | . . . Potential Cave-ins . | . . . Cave-ins Triggered . | . . . Exploration Rate (%) 37 | 4 45 64 Regions Visited 2 Branch Regions 1 Pre-discovered Areas . | . . . Known Exits Taken . | . . . Unknown Exits Taken 2 | 1 1 . Scrap Searched . | . . . Spaces Dug . | . . . Terrain Destroyed 9 | . . 9 Melee . | . . . Projectile . | . . . AOE 9 | . . 9 Terrain Rammed . | . . . Walls Destroyed . | . . . Machines Disabled . | . . . Actions | -11 -10 -10 --------- Run | Yrd Mat Min Total 1103 | 93 687 323 Wait 75 | . 75 . Move 870 | 66 519 285 Hop . | . . . Pick Up 29 | 8 17 4 Fast Attach 13 | 7 5 1 Attach 9 | . 1 8 Detach . | . . . Swap 4 | . 4 . Drop 19 | . 17 2 Fire 84 | 12 49 23 Melee . | . . . Ram . | . . . Kick . | . . . Crush . | . . . Escape Stasis . | . . . Rewire . | . . . Trap . | . . . Miscellaneous . | . . . Route ------- -11/Scrapyard -10/Materials (discovered 2 exits: [*Mat] / [*Min]) -10/Mines (discovered 1 exit: [*Mat]) History --------- Turn | Location | Event 24 | -11/Scrapyard | Discovered new exit (range 15) 115 | -11/Scrapyard | Entered Materials 116 | -10/Materials | Met a group of wandering Federalists 261 | -10/Materials | Discovered new exit (range 13) 317 | -10/Materials | Build established: Mutant 569 | -10/Materials | Repaired Assault Rifle 596 | -10/Materials | Repaired Lgt. Armor Plating 784 | -10/Materials | Discovered new exit (range 13) 918 | -10/Materials | Entered Mines 998 | -10/Mines | Discovered new exit (range 5) 1155 | -10/Mines | Assembled infested the area 1160 | -10/Mines | Assisted by a Guerilla fighting off Assembled 1179 | -10/Mines | YI-UF0 nonchalantly dropped a Grenade Launcher on the ground 1179 | -10/Mines | Core integrity fell below 50% 1194 | -10/Mines | Core integrity fell below 20% 1195 | -10/Mines | Destroyed YI-UF0 1224 | -10/Mines | Lost 9 parts (2p3n2u2w) 1308 | -10/Mines | Destroyed by as-34285 with Assembled Maul Last Messages --------------- 01268_ as-92250 destroyed. 01272_ Acquired 18 matter. 01274_ U-05 Engineer lays Concrete. 01281_ K-01 Serf collects debris. 01281_ as-73496 suffers critical hit (Destroy). 01281_ Destroyed Asb. Heavy Rifle. 01282_ U-05 Engineer lays Concrete. 01284_ K-01 Serf collects debris. 01286_ U-05 Engineer lays Concrete. 01290_ K-01 Serf collects debris. 01290_ U-05 Engineer lays Concrete. 01294_ K-01 Serf collects debris. 01294_ T-07 Excavator is excavating. 01297_ K-01 Serf collects debris. 01299_ T-07 Excavator is excavating. 01300_ K-01 Serf collects debris. 01303_ T-07 Excavator is excavating. 01305_ K-01 Serf collects debris. 01308_ Plasma Injector explodes. 01308_ Destroyed Asb. Hover Unit. Map ----- +----------------------------------------------------+ | ??????????????????# #?# #?????? % ????????## #?? | | ??????????????????# #?# ####### ??????????# ## | | ??????????????????# ### # ###?????????# # | | ??????????????????# ## # #??????#??# | | ??????????????????# ## # ###???? #??# | | ????????????####??# # #### # ###?? #??# | | ???????????## ##?# ## ##?# < | | ???????????# #?# ## % #?## | | ??????????## #?### |% # # ??# | | ?????????## #??# ## * # #??## | | ????????## #??# ## # #??## # | | ???????## #??## # # #?## # | | ??????## ##??## ## # # # % ### # | | ?????## #### # # ### ## | | ????## ## ! ##### ## #? | | ????# #### !% #???## ##? | | ????# ##?# = ##????### #####?? | | ????## #?# ##?????? ## #?????? | | ?????#### #?# ##????## ### #?????? | | ????????## #?## a= #????# ##?# ####### | | ?????????# ##??## % #????# #??# # | | ?????????####???## * ##????# #### ##### # | | ????????????????#; ###?????## #???# # | | ?????????????????## ;; ;####????# #####???# # | | ??????????????????####; a #????## #???????# # | | ??????????????????????# =@ #?????## #???????# # | | ??????????????????????##=## #??????# #??????## | | ???????????????????????#%## ##?????# #?????## | | ???????????????????????# ## ##????# ####### | | ??????????????????????? ## #????# | | ???????????????????????##### ##???# | | ??????????????????????????## ###?########## | | ??????????????????????????# #??????????# | | ?????????????????????????# #??????????# | | ?????????????????????????# ####?????????# | | ?????????????????????????## ##????????????# | | ??????????????????????????#####?????????????## | | ?????????????????????????????????????????????## # | | ??????????????????????????????????????????????#### | | ?????????????????????????????????????????????????? | | | | | | | | | | | | | | | | | | | | | +----------------------------------------------------+ Best States ------------- Heat Dissipation 39 Energy Generation 10 Energy Capacity 250 Matter Stores 300 Matter Capacity 300 Sight Range 16 Terrain Scan Density 10 Armor Coverage 150 Evasion (%) 41 Item Schematics ----------------- None Robot Schematics ------------------ None Fabricated ------------ Nothing Repaired ---------- Assault Rifle | 65% | -10/Materials Lgt. Armor Plating | 73% | -10/Materials Alien Tech Used ----------------- None Achievements -------------- None Challenges ------------ None Game ------ Seed BlastXenonPlatform Manual? 0 Play Time 00:13:01 Cumulative 246.5 hours Start 2025.07.09 @ 01:03:01 End 2025.07.09 @ 01:12:52 Sessions 1 Manual Loads 0 Difficulty Rogue Special Mode None Game No. 233 Rogue 233 Adventurer 0 Explorer 0 Win Type - Total 1 Types 1/0/0/0/0/0/0/0/0/0 Lore% 62 Gallery% 61 Achievement% 48 Wizard Run 0 Options --------- Layout 2 ASCII 1 Keyboard 1 Movement Numpad Keybinds 0 Fullscreen 2 Font 32/TamsynBold Map View 50x44 Zoom Use 0% Tactical HUD 1 Map Filters NONE Filters NONE Steam 1 RUN: ef348726-1bdf-4ebf-8e11-1f7d6bd20a4b